Cogmind - Beta 16.1 @@@ ROGUE MODE // 2026.06.21 @ 19:21:24 Player: JTMusky Result: Destroyed self with Grenade Launcher Performance ------------- Evolutions (0) 0 Regions Visited (2) 400 Robots Destroyed (14) 70 Value Destroyed (336) 336 Prototype IDs (16) 320 Alien Tech Used (0) 0 Bonus (0) 0 TOTAL SCORE: 1126 Bonus ------- None Cogmind --------- Core Integrity 0/250 Matter 197/300 Energy 30/100 System Corruption 0% Temperature Cool (26) Movement Core (450) Ox8 Location -10/Subcaves Parts ------- > --- POWER (1) -------- (None) > --- PROPULSION (2) --- (None) > --- UTILITY (2) ------ Large Storage Unit Signal Interpreter > --- WEAPON (2) ------- Subdweller Laser Grenade Launcher > --- INVENTORY (15) --- Spiked Treads High-capacity Storage Unit High-capacity Battery (250) Subdweller Optics Sensor Array Targeting Computer Targeting Computer Makeshift Hacking Suite Beam Cannon 1B-0RG's Assimilator Welding Torch Peak State ------------ > --- POWER ------------ Subdweller Power Source > --- PROPULSION ------- Light Treads Light Treads > --- UTILITY ---------- Large Storage Unit Signal Interpreter > --- WEAPON ----------- Subdweller Laser Grenade Launcher > --- INVENTORY -------- Spiked Treads High-capacity Storage Unit High-capacity Battery Subdweller Optics Sensor Array Targeting Computer Targeting Computer Makeshift Hacking Suite Beam Cannon 1B-0RG's Assimilator Welding Torch [Rating: 17] Favorites ----------- Power Ion Engine Engine Ion Engine Propulsion Light Treads Treads Light Treads Wheel Wheel Utility Large Storage Unit Device ECM Suite Storage Large Storage Unit Processor Signal Interpreter Weapon Medium Laser Energy Gun Medium Laser Energy Cannon Beam Cannon Launcher Grenade Launcher Special Weapon Mining Laser Build | -11 -10 -10 ------- Run | Yrd Mat Sub Slots Evolved . | . . . Power . | . . . Propulsion . | . . . Utility . | . . . Weapon . | . . . Parts Attached 23 | 9 10 4 Power 5 | 2 . 3 Engine 5 | 2 . 3 Core . | . . . Reactor . | . . . Propulsion 4 | 4 . . Treads 2 | 2 . . Leg . | . . . Wheel 2 | 2 . . Hover . | . . . Flight . | . . . Utility 8 | 1 7 . Device 4 | . 4 . Storage 3 | 1 2 . Processor 1 | . 1 . Hackware . | . . . Protection . | . . . Artifact . | . . . Weapon 6 | 2 3 1 Energy Gun 3 | 2 . 1 Energy Cannon 1 | . 1 . Ballistic Gun . | . . . Ballistic Cannon . | . . . Launcher 1 | . 1 . Special Weapon 1 | . 1 . Impact Weapon . | . . . Slashing Weapon . | . . . Piercing Weapon . | . . . Special Melee Weapon . | . . . Unidentified Prototypes . | . . . Parts Lost 2 | . . 2 Power . | . . . Propulsion 2 | . . 2 Utility . | . . . Weapon . | . . . Highest Loss Streak 2 | . . 2 To Critical Strikes . | . . . Average Backups 11 | 3 11 13 Power . | . . . Propulsion 1 | 1 2 1 Utility 6 | . 5 8 Weapon 2 | . 2 2 Tool/Special . | . . . Unused Backups 14 | . 3 11 Power . | . . . Propulsion 3 | . 2 1 Utility 7 | . . 7 Weapon 2 | . 1 1 Tool/Special 2 | . . 2 Average Slot Usage (%) 98 | . 99 97 Engine 13 | . 14 11 Treads 27 | . 28 27 Device 7 | . 11 . Storage 14 | . 14 14 Processor 6 | . 2 14 Energy Gun 13 | . 18 6 Energy Cannon 6 | . 7 3 Launcher 4 | . . 10 Special Weapon 4 | . 2 7 Peak Build Rating 17 | 6 9 17 Average Rating 9 | 5 7 12 On Entrance 4 | . 6 8 Avg Prop Armor Cover (%) 15 | 15 . . Naked Turns . | . . . Heaviest Build 33 | 13 33 32 Greatest Support 40 | 40 40 40 Greatest Overweight (x) 2 | 2 . . Average Overweight (x) . | . . . Largest Inventory Capacity 20 | 8 20 15 Average Capacity 13 | 6 14 15 Most Carried 15 | 5 15 15 Average Carried 12 | 3 12 14 Final Capacity 15 | 8 15 15 Final Carried 15 | 4 15 15 Class Distribution -------------------- 100% | Mutant Dominant Class ---------------- Mutant | -10/Materials Mutant | -10/Subcaves Resources | -11 -10 -10 ----------- Run | Yrd Mat Sub Matter Collected 637 | 290 110 237 Remotely . | . . . Salvage Created 384 | 88 178 118 Parts 18 | 1 12 5 Haulers Intercepted . | . . . Recyclers Shooed . | . . . Parts Field Recycled . | . . . Retrieved Matter . | . . . Parts Self-Destructed 5 | . . 5 Prevented . | . . . Parts Restored . | . . . Kills | -11 -10 -10 ------- Run | Yrd Mat Sub Combat Hostiles Destroyed 12 | . 7 5 Guns 4 | . 3 1 Cannons 3 | . 3 . AOE 4 | . . 4 Classes Destroyed 5 | 1 3 1 Worker 1 | . 1 . Recycler 1 | 1 . . Swarmer 5 | . 5 . Grunt 4 | . 2 2 Subdweller 3 | . . 3 Best Kill Streak 3 | 1 3 2 Combat Bots Only 3 | . 3 2 Max Kills in Single Turn 1 | 1 1 1 Gunslinging . | . . . Exploded 1 | . . 1 Melee . | . . . Uniques/NPCs Destroyed . | . . . Combat | -11 -10 -10 -------- Run | Yrd Mat Sub Hostile Shots Fired 56 | . 25 31 Missed 18 | . 7 11 Hits 38 | . 18 20 Projectile 38 | . 18 20 Critical Strikes 1 | . . 1 Damage Taken 696 | . 189 507 Core 276 | . 41 235 Absorbed by Shields . | . . . Core Remaining (%) 100 | 100 . . Volleys Fired 67 | 2 34 31 Largest 2 | 2 2 2 Hottest 110 | 90 110 100 Shots Fired 96 | 4 59 33 Gun 50 | 4 36 10 Cannon 14 | . 14 . Launcher 19 | . 1 18 Special 13 | . 8 5 Kinetic . | . . . Thermal 77 | 4 58 15 Explosive 19 | . 1 18 Electromagnetic . | . . . Robot Hit Streak 6 | 4 6 5 Robot Miss Streak 8 | . 8 2 Penetration Max . | . . . Secondary Targets . | . . . Shots Hit Robots 29 | 4 17 8 Core Hits 20 | 2 9 9 Critical Kills . | . . . Critical Parts Destroyed . | . . . Critical Strikes 2 | . 2 . Burn 2 | . 2 . Melee Attacks . | . . . Impact . | . . . Slashing . | . . . Piercing . | . . . Sneak Attacks . | . . . Combat Hostiles . | . . . Follow-up Attacks . | . . . Damage Inflicted 942 | 48 233 661 Guns 316 | 48 163 105 Cannons 70 | . 70 . Explosions 556 | . . 556 Melee . | . . . Ramming . | . . . Kinetic . | . . . Thermal 386 | 48 233 105 Explosive 556 | . . 556 Electromagnetic . | . . . Impact . | . . . Slashing . | . . . Piercing . | . . . Highest Corruption . | . . . Average Corruption . | . . . Corruption Purged . | . . . Corruption Blocked . | . . . Overload Shots . | . . . Overflow Damage . | . . . Projectiles . | . . . Explosions . | . . . Melee . | . . . Knockbacks . | . . . Impact . | . . . Kinetic . | . . . Secondary . | . . . Self-Inflicted Damage 93 | . . 93 Shots 4 | . . 4 Rammed . | . . . Targets Rammed . | . . . Kicked . | . . . Crushed . | . . . Highest Temperature 346 | 60 346 284 Average Temperature 82 | 30 76 155 Received Heat Transfer 395 | . 36 359 Effects 4 | . 2 2 Energy Bleed 1 | . 1 . Interference 2 | . . 2 Short Circuit 1 | . 1 . Siege Activations . | . . . Martial Activations . | . . . Shielding Activations . | . . . Robots Disrupted . | . . . Combat Hostiles . | . . . Robots Corrupted . | . . . Combat Hostiles . | . . . Parts Fried . | . . . Impact Corruptions . | . . . Robots Melted 1 | . 1 . Combat Hostiles 1 | . 1 . Parts Melted 1 | . 1 . Heat Transferred 979 | 124 730 125 Parts Sabotaged . | . . . Parts Stolen . | . . . Parts Stripped . | . . . Power Chain Reactions . | . . . Alert | -11 -10 -10 ------- Run | Yrd Mat Sub Maximum Alert Level . | . . . Low Security (%) 100 | 100 100 . Level 1 . | . . . Level 2 . | . . . Level 3 . | . . . Level 4 . | . . . Level 5 . | . . . High Security . | . . . Max Security . | . . . Peak Influence 70 | 5 70 . Initial . | . . . Average 8 | . 9 . Influence Increases 289 | 5 234 50 Destroy 0b10 Robot/C 180 | . 140 40 Destroy 0b10 Robot/NC 10 | 5 5 . Destroy Leader 40 | . 30 10 Successful Hack 14 | . 14 . Disable Machine 15 | . 15 . Destroy Structure 15 | . 15 . Partial Spotted 15 | . 15 . Influence Decreases 289 | 5 234 50 Time Decay 289 | 5 234 50 Squads Dispatched 2 | . 2 . Investigation 1 | . 1 . Extermination . | . . . Reinforcement 1 | . 1 . Assault . | . . . Garrison . | . . . Intercept . | . . . Searches Triggered . | . . . Construction Impeded . | . . . Haulers Reinforced . | . . . Active Scanning Responses . | . . . Cargo Convoy Interrupts . | . . . Stealth | -11 -10 -10 --------- Run | Yrd Mat Sub Distress Signals . | . . . Communications Jammed . | . . . Distress Signals . | . . . Times Spotted 24 | . 19 5 Peak Tracking Total 3 | . 3 2 Tactical Retreats 1 | . 1 . ECM-based Alert Blocks 1 | . 1 . Traps | -11 -10 -10 ------- Run | Yrd Mat Sub Traps Triggered 3 | . 3 . Indirectly . | . . . Trap Hack Attempts . | . . . Triggered . | . . . Disarmed . | . . . Reprogrammed . | . . . Reused . | . . . Traps Extracted . | . . . Installed . | . . . Triggered . | . . . Machines | -11 -10 -10 ---------- Run | Yrd Mat Sub Machines Disabled 1 | . 1 . Max in Single Turn 1 | . 1 . Machines Repaired . | . . . Machines Dismantled . | . . . Machines Sabotaged . | . . . Overloaded Fab Kills . | . . . Hacking | -11 -10 -10 --------- Run | Yrd Mat Sub Machines Accessed 2 | . 1 1 Terminals 1 | . 1 . Fabricators . | . . . Repair Stations . | . . . Recycling Units . | . . . Scanalyzers . | . . . Garrison Access . | . . . Total Hacks 11 | . 2 9 Successful 11 | . 2 9 Failed . | . . . Catastrophic . | . . . Database Lockouts . | . . . Manual . | . . . Terminals 2 | . 2 . Fabricators . | . . . Repair Stations . | . . . Recycling Units . | . . . Scanalyzers . | . . . Garrison Access . | . . . Terminal Hacks 11 | . 2 9 Record 8 | . . 8 Robot Analysis 1 | . 1 . Prototype ID Bank 1 | . 1 . Proto ID Catalog 1 | . . 1 Fabricator Hacks . | . . . Repair Station Hacks . | . . . Recycling Unit Hacks . | . . . Scanalyzer . | . . . Garrison Access Hacks . | . . . Unauthorized Hacks . | . . . Terminals . | . . . Fabricators . | . . . Repair Stations . | . . . Recycling Units . | . . . Scanalyzers . | . . . Garrison Access . | . . . Data Cores Recovered . | . . . Used . | . . . Hacking Detections 1 | . 1 . Full Trace Events . | . . . Feedback Events . | . . . Feedback Blocked . | . . . Robot Schematics Acquired . | . . . Robots Built . | . . . Authchips . | . . . Time . | . . . Total Robot Build Rating . | . . . Part Schematics Acquired . | . . . Parts Built . | . . . Authchips . | . . . Time . | . . . Total Part Build Rating . | . . . Part Studies Acquired . | . . . Parts Repaired . | . . . Time . | . . . Parts Recycled . | . . . Recycled Matter . | . . . Retrieved Matter . | . . . Retrieved Components . | . . . Parts Scanalyzed . | . . . Part Schematics Acquired . | . . . Parts Damaged . | . . . Bothacking | -11 -10 -10 ------------ Run | Yrd Mat Sub Used RIF Installer . | . . . Robots Hacked . | . . . Non-combat . | . . . Combat . | . . . Robot Hacks Applied . | . . . Relay Couplers Released . | . . . Fabnet Peak Effective % . | . . . Robots Rewired . | . . . Allies Hacked . | . . . Hacks Repelled . | . . . Allies | -11 -10 -10 -------- Run | Yrd Mat Sub Total Allies . | . . . Largest Group . | . . . Highest-Rated Group . | . . . Highest-Rated Ally . | . . . Total Orders . | . . . Ally Attacks . | . . . Total Damage . | . . . Kills . | . . . Allies Corrupted . | . . . Allies Melted . | . . . Intel | -11 -10 -10 ------- Run | Yrd Mat Sub Active Infowar (turns) 1447 | . 1447 . Optics 52 | . 52 . Structural 123 | . 123 . ECM 1272 | . 1272 . Robot Analysis Total 1 | . 1 . Derelict Logs Recovered 1 | . . 1 Drone Launches . | . . . Drone Recoveries . | . . . Exploration | -11 -10 -10 ------------- Run | Yrd Mat Sub Turns Passed 2976 | 168 1733 1075 Spaces Moved 1625 | 108 934 583 Core 69 | 69 . . Treads 1556 | 39 934 583 Legs . | . . . Wheels . | . . . Hover . | . . . Flight . | . . . Fastest Speed 50 | 50 160 160 Average Speed 158 | 133 160 160 Slowest Speed 160 | 160 160 160 Overloaded Moves . | . . . Propulsion Burnouts . | . . . Robots Hopped . | . . . Potential Cave-ins . | . . . Cave-ins Triggered . | . . . Exploration Rate (%) 45 | 6 99 32 Regions Visited 2 Branch Regions 1 Pre-discovered Areas 1 | . . 1 Known Exits Taken 1 | . 1 . Unknown Exits Taken 1 | 1 . . Scrap Searched 5 | . . 5 Spaces Dug 12 | . 8 4 Terrain Destroyed 95 | . 16 79 Melee . | . . . Projectile 8 | . 8 . AOE 87 | . 8 79 Terrain Rammed . | . . . Walls Destroyed . | . . . Machines Disabled . | . . . Actions | -11 -10 -10 --------- Run | Yrd Mat Sub Total 1905 | 125 1095 685 Wait 118 | . 72 46 Move 1623 | 107 933 583 Hop . | . . . Pick Up 37 | 5 28 4 Fast Attach 13 | 7 3 3 Attach 3 | 1 2 . Detach 1 | . 1 . Swap 20 | 1 13 6 Drop 23 | 2 9 12 Fire 67 | 2 34 31 Melee . | . . . Ram . | . . . Kick . | . . . Crush . | . . . Escape Stasis . | . . . Rewire . | . . . Trap . | . . . Miscellaneous . | . . . Route ------- -11/Scrapyard -10/Materials (discovered 6 exits: *Mat x3 / *Min x2 / *Sub) -10/Subcaves (discovered 2 exits: *Mat / [*Scr]) History --------- Turn | Location | Event 16 | -11/Scrapyard | Discovered new exit (range 15) 169 | -11/Scrapyard | Entered Materials 236 | -10/Materials | Discovered new exit (range 10) 301 | -10/Materials | Build established: Mutant 371 | -10/Materials | Discovered new exit (range 10) 513 | -10/Materials | Discovered new exit (range 4) 562 | -10/Materials | Discovered new exit (range 4) 669 | -10/Materials | Derelicts attacked the area 797 | -10/Materials | Discovered new exit (range 8) 1591 | -10/Materials | Discovered new exit (range 14) 1665 | -10/Materials | Identified exit to Subcaves 1751 | -10/Materials | Identified exit to Materials 1820 | -10/Materials | Identified exit to Mines 1902 | -10/Materials | Entered Subcaves 1903 | -10/Subcaves | Approached by a straggling Scientist 1992 | -10/Subcaves | Learned Materials trap positions 2021 | -10/Subcaves | Shifting Twisted Machinery released Flamer 2060 | -10/Subcaves | Shifting Twisted Machinery released Enh. Flamer 2153 | -10/Subcaves | Scientist uncovered a shortcut to Scraptown 2167 | -10/Subcaves | Learned location of Zion (-7) 2167 | -10/Subcaves | Met a Zionite searching for "candidates" 2197 | -10/Subcaves | A swath of the cavern ceiling suddenly collapsed 2347 | -10/Subcaves | Discovered new exit (range 6) 2354 | -10/Subcaves | Identified exit to Materials 2358 | -10/Subcaves | Disturbed a concealed Subdweller 2481 | -10/Subcaves | Visited 4L-MR0's lab 2500 | -10/Subcaves | Found Prototype Special Melee Weapon 2653 | -10/Subcaves | Shifting Twisted Machinery released Mak. Hammer 2654 | -10/Subcaves | Shifting Twisted Machinery released Sub. Power Source 2964 | -10/Subcaves | Core integrity fell below 50% 2973 | -10/Subcaves | Core integrity fell below 20% 2977 | -10/Subcaves | Destroyed self with Grenade Launcher Last Messages --------------- 02709_ The unstable cave ceiling collapses. 02720_ Sub. Power Source shoots sparks and powers down. 02729_ Dropped Broken Sub. Power Source. 02736_ Acquired Sub. Power Source. 02740_ The unstable cave ceiling collapses. 02863_ Sub. Power Source shoots sparks and powers down. 02885_ Dropped Broken Sub. Power Source. 39-L0S(R) emerges from concealment. 02957_ Critical hit (Meltdown: +290). 02958_ Overheating: System interference. 02958_ Grenade Launcher temporarily disabled. 02958_ Signal Interpreter temporarily disabled. 02959_ Lgt. Treads destroyed. 02962_ The unstable cave ceiling collapses. 02966_ Lgt. Treads destroyed. 02972_ Destroyed Scrap Shield. 02974_ KX-T6R(R) destroyed. 02977_ 39-L0S(R) destroyed. Map ----- +----------------------------------------------------+ | ?????????????????????????????????????????????????? | | ?????????????????????????????????????????????????? | | ?????????????????????????????????????????????????? | | ?????????????????????????????????????????????????? | | ?????????????????????????????????????????????????? | | ?????????????????????????????????????????????????? | | ?????????????????????????????????????????????????? | | ?????????????????????????????????????????????????? | | ?????????????????????????????????????????????????? | | ?????????????????????????????????????????????????? | | ??????????????????????????? ?????????????????????? | | ??????????????????????????? #????????????????????? | | ??????????????????????????? ##???????????????????? | | ?????????????????????????? #???????????????????? | | ?????????????????????????? #???????????????????? | | ?????????????????????????? #???????????????????? | | ?????????????????????????? #???????????????????? | | ?????????????????????????? ##??????????????????? | | ?????????????????????????? ;???????????????????? | | ??????????????????????#### #???????????????????? | | ??????????????????##### #???????????????????? | | ???????????????#### #???????????????????? | | ???????????????# #???????????????????? | | ?????????????# # #???????????????????? | | ?????????????# #???????????????????? | | ?????????????# @ #???????????????????? | | ?????????????# #???????????????????? | | ?????????????# # %% ##??????????????????? | | ???????????????# = #??????????????????? | | ???????????????## ##??????????????????? | | ????????????????# # # #???????????????????? | | ????????????????## ##### #???????????????????? | | ????????????????# ##????# #???????????????????? | | ????????????????## ##???? #???????????????????? | | ?????????????????## ###?? ##??????????????????? | | ???????????###????# ##? ##?????????????????? | | ??????????? ##???## #? #?????????????????? | | ??????????# #???## ### ### ##???????????? | | ??????????# ###### ## #???????????? | | ?????????## # # " " ????????????? | | ?######### # " ?????????? | | ## # ## # ## ### ## #?????????? | | #### ## #### " #??????????? | | ## ## # ## #??????????? | | ## # ## "## # # ## " #??????????? | | ### ##### "### #?"" ##??????????? | | #?# #??# ##"" " #??"" "#???????????? | | ### ##### * " "#??? ""#???????????? | | " ### #### " #??? """#???????????? | | """" ### " ##### ##???"??????????????? | +----------------------------------------------------+ Best States ------------- Heat Dissipation 25 Energy Generation 15 Energy Capacity 250 Matter Stores 300 Matter Capacity 300 Sight Range 21 Terrain Scan Density 10 ECM Strength 1 Evasion (%) 50 Recoil Reduction 2 Item Schematics ----------------- None Robot Schematics ------------------ None Fabricated ------------ Nothing Repaired ---------- Nothing Studied --------- None Alien Tech Used ----------------- None Achievements -------------- Mistaken Identity Nice Directions, Buddy Challenges ------------ None Game ------ Seed DisruptorDamperThermoblaster Manual? 0 Play Time 01:12:28 Cumulative 44.8 hours Start 2026.06.06 @ 17:57:15 End 2026.06.21 @ 19:21:24 Sessions 10 Manual Loads 0 Difficulty Rogue Special Mode None Game No. 64 Rogue 64 Adventurer 0 Explorer 0 Win Type - Total 0 Types 0/0/0/0/0/0/0/0/0/0 Lore% 15 Gallery% 18 Achievement% 13 Wizard Run 0 Options --------- Layout 2 ASCII 1 Keyboard 1 Movement Vi Keybinds 1 Fullscreen 2 Font 32/SmallcapsGlow Map View 50x44 Zoom Use 0% Tactical HUD 1 Map Filters NONE Filters NONE Steam 0 RUN: 0697a860-3cce-4b1f-8759-621f45c53c76